bitfinex-derivatives/quotes_SOLF0:USTF0_20250523
["timestamp","ask_amount","ask_price","bid_price","bid_amount"]
[1747961944775,5.5276,180.88,180.86,0.04155691]
[1747961946262,5.5276,180.87,180.86,0.04155691]
[1747961946971,5.5274,180.88,180.86,0.04155691]
[1747961947678,5.5276,180.87,180.86,0.04155691]
[1747961949182,0.04154092,180.9,180.86,0.04155691]
[1747961949777,5.5273,180.88,180.86,0.04155691]
[1747961950074,0.04154092,180.9,180.87,5.5274]
[1747961950280,0.04154092,180.9,180.86,0.04155691]
[1747961950873,0.04154092,180.9,180.87,5.5276]
[1747961951081,0.04154092,180.9,180.86,0.04155691]
[1747961951681,5.5276,180.87,180.86,0.04155691]
[1747961965587,5.5276,180.87,180.86,5.691e-05]
[1747961966993,5.16771481,180.89,180.79,129.68]
[1747961966994,5.5298,180.8,180.79,129.68]
[1747961967184,5.5298,180.8,180.78,4.29546754]
[1747961967491,5.5301,180.79,180.78,4.29546754]
[1747961967687,129.12,180.85,180.75,133.41546754]
[1747961967993,0.04250305,180.82,180.78,0.03941625]
[1747961968592,5.5301,180.79,180.78,0.03941625]
[1747961974291,5.5295,180.81,180.78,0.03941625]
[1747961975092,5.5299,180.8,180.78,0.03941625]
[1747961976894,5.5301,180.79,180.78,0.03941625]
[1747961977797,5.5301,180.79,180.78,1.625e-05]
[1747961979702,5.5319,180.73,180.72,4.29546754]
[1747961980497,5.5319,180.73,180.7,3.9584]
[1747961980797,0.03649136,180.73,180.71,5.5325]
[1747961981297,0.03649136,180.73,180.7,9.52704411]
[1747961981496,5.56839136,180.73,180.7,9.52704411]
[1747961982495,0.03649136,180.73,180.7,3.99434411]
[1747961983502,0.03649136,180.73,180.7,0.03594411]
[1747961983895,5.56859136,180.73,180.7,0.03594411]
[1747961984099,0.03649136,180.73,180.7,0.03594411]
[1747961985504,5.16771481,180.82,180.7,0.03594411]
[1747961985705,5.16771481,180.82,180.69,5.0049912]
[1747961985905,5.5302,180.79,180.75,5.531]
[1747961986107,129.18,180.83,180.7,2.0121]
[1747961986406,0.03926992,180.78,180.75,0.04069711]
[1747961987100,5.56986992,180.78,180.75,5.57199711]
[1747961987404,0.03926992,180.78,180.75,0.04069711]
[1747961987705,0.03926992,180.78,180.76,5.5308]
[1747961988013,0.03926992,180.78,180.75,0.04069711]
[1747961990016,0.03926992,180.78,180.75,5.57179711]
[1747961991224,0.03926992,180.78,180.75,0.04069711]
[1747961992622,0.03926992,180.78,180.76,5.5307]
[1747961993325,0.03926992,180.78,180.77,5.5307]
[1747961993521,0.03926992,180.78,180.75,0.04069711]
[1747961994424,0.03926992,180.78,180.76,5.5308]
[1747961994616,5.56976992,180.78,180.75,0.04069711]
[1747961995125,5.56976992,180.78,180.75,5.57179711]
[1747961995927,0.03926992,180.78,180.77,5.5307]
[1747961996425,129.18,180.83,180.75,0.04069711]
[1747961996621,5.5297,180.81,180.78,5.5302]
[1747961996819,1.9785,180.86,180.78,5.5302]
[1747961997223,0.03733708,180.84,180.8,0.04004193]
[1747961997821,5.5295,180.81,180.8,0.04004193]
[1747961998026,0.03733708,180.84,180.8,0.04004193]
[1747961998423,5.5294,180.82,180.8,0.04004193]
[1747961999227,5.5295,180.81,180.8,0.04004193]
[1747961999726,5.5293,180.82,180.8,0.04004193]
[1747961999930,0.03733708,180.84,180.8,0.04004193]
[1747962001424,5.5294,180.82,180.8,0.04004193]
[1747962002626,0.03733708,180.84,180.8,0.04004193]
[1747962003430,5.16771481,180.91,180.8,105.14004193]
[1747962003728,5.16771481,180.91,180.81,3.9004]
[1747962003930,5.16771481,180.91,180.81,8.9053912]
[1747962004328,0.03163427,180.88,180.84,5.04452184]
[1747962004627,5.16771481,180.91,180.9,5.5267]
[1747962004826,6.89028642,180.93,180.88,105.1]
[1747962005534,5.5255,180.94,180.89,0.04172724]
[1747962006026,5.5255,180.94,180.91,5.5263]
[1747962006234,5.5258,180.93,180.89,0.04172724]
[1747962006532,128.56,180.98,180.89,0.04172724]
[1747962006927,5.5262,180.92,180.89,0.04172724]
[1747962007120,128.56,180.98,180.89,0.04172724]
[1747962007529,5.5266,180.91,180.89,0.04172724]
[1747962008034,5.5267,180.9,180.89,0.04172724]
[1747962008534,5.5265,180.91,180.89,0.04172724]
[1747962009734,5.5267,180.9,180.89,0.04172724]
[1747962010837,5.5265,180.91,180.89,0.04172724]
[1747962011037,128.56,180.98,180.9,5.5267]
[1747962011426,5.5257,180.94,180.9,5.5267]
[1747962011630,128.56,180.98,180.92,5.5261]
[1747962011930,5.525,180.96,180.93,0.03525327]
[1747962012125,128.52,181.02,180.93,0.03525327]
[1747962012330,128.52,181.06,180.93,0.03525327]
[1747962012629,128.52,181.06,180.97,0.04030443]
[1747962012825,128.52,181.06,180.99,5.524]
[1747962013030,5.523,181.03,180.97,105.08030443]
[1747962013230,128.52,181.06,180.97,105.08030443]
[1747962013431,128.52,181.06,180.98,5.524]
[1747962013738,128.52,181.06,180.97,105.08030443]
[1747962014131,5.5239,181.0,180.97,105.08030443]
[1747962014439,128.52,181.06,180.97,105.08030443]
[1747962014639,5.5243,180.98,180.97,105.08030443]
[1747962014837,133.5249912,181.06,180.97,105.08030443]
[1747962015542,128.52,181.06,180.97,105.08030443]
[1747962015941,5.5233,181.02,180.97,105.08030443]
[1747962016141,5.5233,181.02,180.97,110.60460443]
[1747962016641,5.5233,181.02,180.98,5.5243]
[1747962017141,128.52,181.06,180.97,105.08030443]
[1747962017838,5.5236,181.01,180.97,105.08030443]
[1747962018344,128.52,181.06,180.97,105.08030443]
[1747962019046,5.5236,181.01,180.97,105.08030443]
[1747962019546,128.52,181.06,180.97,105.08030443]
[1747962021446,5.5238,181.0,180.97,105.08030443]
[1747962021945,5.5243,180.98,180.97,0.04030443]
[1747962022943,5.524,180.99,180.97,0.04030443]
[1747962023440,5.5243,180.98,180.97,0.04030443]
[1747962025052,128.46,181.01,180.97,0.04030443]
[1747962025953,127.86,181.05,180.97,0.04030443]
[1747962026252,127.86,181.05,180.99,0.03542166]
[1747962026554,127.86,181.07,180.99,0.03542166]
[1747962026939,127.86,181.07,181.0,5.5236]
[1747962027351,10.33542963,181.15,181.01,105.0]
[1747962027550,6.89028642,181.18,181.05,5.04586066]
[1747962027755,6.89028642,181.18,181.1,0.036591]
[1747962028151,6.89028642,181.18,181.11,127.84]
[1747962028654,6.89028642,181.18,181.11,129.8525]
[1747962028850,6.89028642,181.18,181.12,5.0049912]
[1747962029259,10.33542963,181.2,181.12,5.0049912]
[1747962029550,10.33542963,181.2,181.19,5.5179]
[1747962029751,10.33542963,181.2,181.19,238.3579]
[1747962030855,13.78057284,181.25,181.19,238.3579]
[1747962031055,3.8652,181.28,181.19,232.84]
[1747962031357,3.8652,181.28,181.22,0.04094926]
[1747962031558,127.83512761,181.27,181.17,105.0]
[1747962032253,5.5175,181.21,181.17,105.0]
[1747962032451,5.55265784,181.21,181.17,105.03927456]
[1747962033157,5.5176,181.2,181.17,105.03927456]
[1747962033352,0.03515784,181.21,181.17,105.03927456]
[1747962034559,0.03515784,181.21,181.2,5.5176]
[1747962034860,0.03515784,181.21,181.2,127.76]
[1747962036862,0.03515784,181.21,181.2,133.2776]
[1747962037160,0.03515784,181.21,181.2,127.76]
[1747962037759,0.03515784,181.21,181.2,133.2776]
[1747962040469,0.03515784,181.21,181.2,127.76]
[1747962041257,0.03515784,181.21,181.2,133.2776]
[1747962041562,2.0089,181.3,181.2,127.76]
[1747962041763,5.5157,181.27,181.22,5.5169]
[1747962042060,5.5157,181.27,181.2,127.76]
[1747962042265,5.5157,181.27,181.22,5.5167]
[1747962042657,5.5157,181.27,181.23,0.03543217]
[1747962042858,127.76,181.31,181.23,0.03543217]
[1747962043268,5.5155,181.27,181.23,0.03543217]
[1747962044170,5.5155,181.27,181.23,5.55203217]
[1747962044661,5.5152,181.28,181.23,5.55203217]
[1747962044961,127.76,181.31,181.23,0.03543217]
[1747962045266,5.8623,181.27,181.23,0.03543217]
[1747962045652,5.8623,181.27,181.18,127.7]
[1747962046062,5.5171,181.22,181.15,5.5189]
[1747962046262,127.68,181.26,181.14,232.54]
[1747962046658,0.03543218,181.22,181.18,0.03706236]
[1747962046858,0.03543218,181.22,181.18,5.55506236]
[1747962047266,0.03543218,181.22,181.18,0.03706236]
[1747962047566,0.03543218,181.22,181.19,5.5176]
[1747962047768,0.03543218,181.22,181.18,0.03706236]
[1747962047964,0.03543218,181.22,181.21,5.5173]
[1747962048265,0.03543218,181.22,181.18,0.03706236]
[1747962048765,5.55253218,181.22,181.18,0.03706236]
[1747962048963,0.03543218,181.22,181.18,0.03706236]
[1747962049366,5.5176,181.2,181.15,5.5191]
[1747962049862,5.5182,181.18,181.13,5.5196]
[1747962050270,127.68,181.21,181.13,5.5196]
[1747962050474,0.04023311,181.19,181.15,0.03583606]
[1747962050768,0.04023311,181.19,181.1,127.68]
[1747962050968,5.5188,181.16,181.11,5.5202]
[1747962051269,4.0439,181.18,181.1,127.68]
[1747962051572,0.03966235,181.16,181.12,0.03482159]
[1747962052668,0.03966235,181.16,181.12,5.55482159]
[1747962053768,0.03966235,181.16,181.12,0.03482159]
[1747962053979,127.73966235,181.16,180.98,604.58]
[1747962054271,5.5212,181.09,181.03,5.5227]
[1747962054473,133.2212,181.09,180.98,604.58]
[1747962054674,127.7,181.09,180.98,604.58]
[1747962054867,5.5215,181.08,181.03,5.5227]
[1747962055176,5.5215,181.08,180.98,604.58]
[1747962055177,0.03688105,181.05,181.02,0.03999075]
[1747962057270,127.42,181.04,180.91,127.42]
[1747962058272,0.03887028,180.99,180.96,0.03869541]
[1747962058466,127.47887028,180.99,180.96,0.03869541]
[1747962058772,127.47887028,180.99,180.98,5.5243]
[1747962059168,0.03887028,180.99,180.98,5.5243]
[1747962061676,7.028e-05,180.99,180.98,5.5243]
[1747962065884,7.028e-05,180.99,180.97,5.5244]
[1747962066082,7.028e-05,180.99,180.96,0.03869541]
[1747962066281,7.028e-05,180.99,180.97,127.48]
[1747962066584,1.9403,181.08,181.05,5.5219]
[1747962067076,1.9403,181.08,180.98,2.0289]
[1747962067381,0.0423151,181.05,181.01,0.03907788]
[1747962067681,0.0423151,181.05,181.02,5.5228]
[1747962068077,0.0423151,181.05,181.01,5.56237788]
[1747962068287,0.0423151,181.05,181.01,0.03907788]
[1747962068781,0.0423151,181.05,181.04,5.5225]
[1747962069187,0.0423151,181.05,181.01,0.03907788]
[1747962069380,0.0423151,181.05,181.01,5.56237788]
[1747962069577,0.0423151,181.05,181.01,0.03907788]
[1747962069884,0.0423151,181.05,181.02,5.5228]
[1747962070076,0.0423151,181.05,181.01,0.03907788]
[1747962070481,0.0423151,181.05,181.02,5.5228]
[1747962070780,0.0423151,181.05,181.01,0.03907788]
[1747962070982,0.0423151,181.05,181.03,5.5225]
[1747962071181,0.0423151,181.05,181.01,0.03907788]
[1747962071584,0.0423151,181.05,181.04,5.5225]
[1747962072681,0.0423151,181.05,181.01,0.03907788]
[1747962072886,0.0423151,181.05,181.03,5.5227]
[1747962073187,0.0423151,181.05,181.01,0.03907788]
[1747962074190,0.0423151,181.05,181.04,5.5225]
[1747962075190,127.5,181.2,181.12,5.52]
[1747962075588,127.5,181.2,181.04,127.5]
[1747962076187,0.04196706,181.14,181.1,0.03759738]
[1747962076390,0.04196706,181.14,181.1,5.55799738]
[1747962076983,0.04196706,181.14,181.1,0.03759738]
[1747962077487,2.05266706,181.14,181.1,0.03759738]
[1747962077987,7.57226706,181.14,181.1,0.03759738]
[1747962078491,2.05266706,181.14,181.1,0.03759738]
[1747962079280,0.04196706,181.14,181.13,5.5197]
[1747962080690,0.04196706,181.14,181.12,5.52]
[1747962080988,0.04196706,181.14,181.1,0.03759738]
[1747962081389,0.04196706,181.14,181.13,5.5197]
[1747962081786,0.04196706,181.14,181.1,0.03759738]
[1747962082389,0.04196706,181.14,181.1,5.55819738]
[1747962082986,0.04196706,181.14,181.1,0.03759738]
[1747962083301,127.52196706,181.14,181.1,0.03759738]
[1747962083890,127.52196706,181.14,181.11,5.5203]
[1747962084090,127.52196706,181.14,181.1,0.03759738]
[1747962084794,127.52196706,181.14,181.11,5.5201]
[1747962084995,127.52196706,181.14,181.1,0.03759738]
[1747962085191,127.52196706,181.14,181.11,5.5203]
[1747962085491,127.52196706,181.14,181.01,129.1225]
[1747962085790,3.8972,181.13,181.01,234.0425]
[1747962085985,3.8972,181.13,181.0,477.2]
[1747962086487,0.03631972,181.08,181.05,0.04197566]
[1747962088489,0.03631972,181.08,181.05,5.56407566]
[1747962088793,0.03631972,181.08,181.05,0.04197566]
[1747962089594,0.03631972,181.08,181.06,5.5216]
[1747962090892,127.19631972,181.08,180.96,1.9932]
[1747962091093,127.16,181.08,180.96,1.9932]
[1747962091888,0.03882095,181.04,181.0,0.03879202]
[1747962092493,0.03882095,181.04,181.03,5.5228]
[1747962093598,127.16,181.21,181.03,110.46]
[1747962093789,132.6775,181.21,181.06,7.97726301]
[1747962093990,127.16,181.21,181.13,5.5197]
[1747962094290,1.8549,181.26,181.13,104.94]
[1747962094291,127.18,181.25,181.13,104.94]
[1747962094596,0.03951354,181.21,181.17,0.04123853]
[1747962094995,0.03951354,181.21,181.18,5.5179]
[1747962095195,0.03951354,181.21,181.17,0.04123853]
[1747962095899,5.55691354,181.21,181.17,0.04123853]
[1747962096202,0.03951354,181.21,181.17,0.04123853]
[1747962096903,5.5182,181.18,181.17,0.04123853]
[1747962099203,5.5192,181.15,181.07,1.9461]
[1747962099500,130.8922,181.2,181.08,232.06]
[1747962099696,5.5199,181.13,181.05,2.0271]
[1747962099903,130.8922,181.2,181.05,2.0271]
[1747962100101,130.8922,181.2,181.05,129.1671]
[1747962100402,0.0413936,181.14,181.11,0.04156824]
[1747962101102,5.5609936,181.14,181.11,0.04156824]
[1747962101804,5.5199,181.13,181.11,0.04156824]
[1747962102009,0.0413936,181.14,181.11,0.04156824]
[1747962102500,127.1813936,181.14,181.03,127.14]
[1747962102700,3.8861,181.13,181.03,127.14]
[1747962103106,5.521,181.09,181.03,127.14]
[1747962103308,3.8861,181.13,181.03,127.14]
[1747962103498,3.8861,181.13,181.06,0.04156269]
[1747962103701,0.03546415,181.1,181.06,0.04156269]
[1747962104109,5.521,181.09,181.06,0.04156269]
[1747962104300,0.03546415,181.1,181.06,0.04156269]
[1747962105307,5.521,181.09,181.06,0.04156269]
[1747962105602,0.03546415,181.1,181.06,0.04156269]
[1747962105910,127.14,181.09,180.99,127.14]
[1747962106401,5.5223,181.05,180.99,127.14]
[1747962106609,127.14,181.09,180.99,127.14]
[1747962106998,0.03966125,181.06,181.02,0.03725247]
[1747962107199,0.03966125,181.06,180.95,236.28158681]
[1747962107398,127.14,181.09,180.95,4.22158681]
[1747962107399,7.97726301,181.07,180.95,4.22158681]
[1747962107904,1.9259,181.06,180.95,4.22158681]
[1747962108101,5.5236,181.01,180.99,0.03865142]
[1747962108407,127.14,181.01,180.99,0.03865142]
[1747962109098,0.04108582,181.02,180.99,0.03865142]
[1747962109099,127.22108582,181.02,180.99,0.03865142]
[1747962110209,0.04108582,181.02,180.99,0.03865142]
[1747962111106,0.04108582,181.02,180.99,5.56255142]
[1747962111308,0.04108582,181.02,180.99,0.03865142]
[1747962111507,0.04108582,181.02,180.99,5.56245142]
[1747962111705,0.04108582,181.02,180.99,0.03865142]
[1747962112007,0.04108582,181.02,180.99,5.56235142]
[1747962112206,0.04108582,181.02,180.99,0.03865142]
[1747962114922,5.5236,181.01,180.99,0.03865142]
[1747962115614,5.5237,181.0,180.99,0.03865142]
[1747962116908,0.04108582,181.02,180.89,4.22158681]
[1747962117116,1.9143,181.02,180.87,126.84]
[1747962117916,0.03658021,180.96,180.93,0.04124294]
[1747962118211,0.03658021,180.96,180.87,126.84]
[1747962118409,0.03658021,180.96,180.86,4.22158681]
[1747962118606,8.01384322,180.96,180.86,4.22158681]
[1747962119009,5.5273,180.89,180.86,4.22158681]
[1747962119206,0.03828945,180.89,180.86,4.22158681]
[1747962119404,0.03828945,180.89,180.86,4.25819879]
[1747962120015,0.03828945,180.89,180.86,0.03661198]
[1747962121217,0.03828945,180.89,180.86,5.56451198]
[1747962121417,0.03828945,180.89,180.86,0.03661198]
[1747962122120,5.56558945,180.89,180.86,0.03661198]
[1747962122327,0.03828945,180.89,180.86,0.03661198]
[1747962123319,1.9101,180.96,180.86,0.03661198]
[1747962123513,126.88,180.98,180.86,0.03661198]
[1747962123716,126.88,180.98,180.85,2.099]
[1747962124028,5.5255,180.95,180.85,2.099]
[1747962124315,0.04190249,180.92,180.88,0.0383213]
[1747962124523,0.04190249,180.92,180.89,126.9]
[1747962124821,0.04190249,180.92,180.91,5.5264]
[1747962129118,2.49e-06,180.92,180.91,5.5264]
[1747962129325,2.49e-06,180.92,180.91,11.0464]
[1747962129623,5.5234,181.01,180.97,5.5246]
[1747962130022,126.9,181.02,180.9,126.9]
[1747962130822,0.03919409,180.98,180.94,0.03776796]
[1747962131722,5.9711,181.09,180.95,126.9]
[1747962131915,5.9711,181.09,180.96,3.9827]
[1747962132226,5.5219,181.06,180.97,105.02]
[1747962132528,5.5219,181.06,181.03,5.5226]
[1747962132728,0.04109467,181.06,181.03,5.5226]
[1747962132918,0.04109467,181.06,181.0,0.03576205]
[1747962132919,0.04109467,181.06,181.01,126.88]
[1747962133120,0.04109467,181.06,181.05,5.5222]
[1747962134223,0.04109467,181.06,181.04,5.55818472]
[1747962134527,0.04109467,181.06,181.04,0.03578472]
[1747962134728,0.04109467,181.06,181.05,5.5222]
[1747962136633,0.04109467,181.06,181.05,110.5222]
[1747962136930,9.467e-05,181.06,181.05,110.5222]
[1747962137334,9.467e-05,181.06,181.05,112.4076]
[1747962139231,5.7832,181.16,181.11,5.5202]
[1747962140027,5.55896475,181.15,181.12,0.03988541]
[1747962140432,0.03976475,181.15,181.12,0.03988541]
[1747962140626,5.5195,181.14,181.12,0.03988541]
[1747962141836,5.5198,181.13,181.12,0.03988541]
[1747962142036,0.03976475,181.15,181.12,0.03988541]
[1747962143633,0.03976475,181.15,181.13,5.5197]
[1747962144127,0.03976475,181.15,181.12,0.03988541]
[1747962144333,0.03976475,181.15,181.14,5.5195]
[1747962144633,0.03976475,181.15,181.12,0.03988541]
[1747962144937,0.03976475,181.15,181.13,5.5197]
[1747962146229,0.03976475,181.15,181.12,0.03988541]
[1747962147236,0.03976475,181.15,181.14,5.5195]
[1747962147530,0.03976475,181.15,181.12,0.03988541]
[1747962147731,0.03976475,181.15,181.12,5.55988541]
[1747962148041,126.43976475,181.15,181.02,126.4]
[1747962148237,130.3393,181.15,181.05,5.5221]
[1747962148838,5.5209,181.1,181.05,5.5221]
[1747962149035,0.03615616,181.09,181.06,0.04062045]
[1747962152028,0.03615616,181.09,181.06,5.56232045]
[1747962152537,0.03615616,181.09,181.06,0.04062045]
[1747962152946,126.43615616,181.09,180.98,126.4]
[1747962153134,126.4,181.09,180.98,131.9243]
[1747962153636,126.4,181.08,180.98,126.4]
[1747962153836,126.4,181.08,181.01,0.03759388]
[1747962153837,0.04112703,181.05,181.01,0.03759388]
[1747962155141,0.04112703,181.05,181.02,5.5231]
[1747962155641,0.04112703,181.05,181.01,5.56099388]
[1747962156239,5.5226,181.04,181.01,0.03759388]
[1747962156436,0.04112703,181.05,181.01,0.03759388]
[1747962156834,0.04112703,181.05,181.03,5.5225]
[1747962157643,0.04112703,181.05,181.04,5.5225]
[1747962160145,3.9263,181.14,181.04,5.5225]
[1747962160146,131.9398,181.13,181.09,5.5208]
[1747962160342,3.9263,181.14,181.04,126.42]
[1747962160641,1.9083,181.14,181.04,126.42]
[1747962160839,5.5199,181.13,181.04,126.42]
[1747962161140,1.9083,181.14,181.04,126.42]
[1747962161342,0.03853266,181.1,181.09,5.521]
[1747962161535,5.5186,181.17,181.09,126.42]
[1747962161536,0.04100516,181.11,181.09,126.42]
[1747962161738,0.0366415,181.12,181.09,126.42]
[1747962162042,0.03480044,181.12,181.09,126.45719281]
[1747962162439,5.518,181.19,181.16,5.5186]
[1747962162630,5.518,181.19,181.09,126.42]
[1747962162835,5.5184,181.18,181.14,5.5193]
[1747962163348,5.55680971,181.18,181.14,5.55951828]
[1747962163638,5.5186,181.17,181.14,0.04021828]
[1747962163843,0.03840971,181.18,181.09,126.42]
[1747962164640,0.03840971,181.18,181.09,128.3436]
[1747962164945,0.03840971,181.18,181.12,0.03650676]
[1747962165146,0.03840971,181.18,181.15,5.519]
[1747962165344,5.55680971,181.18,181.12,0.03650676]
[1747962166740,0.03840971,181.18,181.12,0.03650676]
[1747962166952,126.38,181.26,181.13,104.92]
[1747962167243,126.38,181.26,181.23,5.5164]
[1747962167444,126.38,181.26,181.14,126.38]
[1747962167841,126.38,181.26,181.22,5.5169]
[1747962168044,126.41995605,181.26,181.22,0.03957272]
[1747962168548,0.03995605,181.26,181.22,0.03957272]
[1747962169045,0.03995605,181.26,181.23,5.5164]
[1747962169249,0.03995605,181.26,181.22,0.03957272]
[1747962170350,0.03995605,181.26,181.24,5.5163]
[1747962170845,0.03995605,181.26,181.25,5.5161]
[1747962172151,3.7351,181.35,181.24,126.34]
[1747962172356,7.09028601,181.39,181.24,126.34]
[1747962172655,5.08628601,181.39,181.37,5.5124]
[1747962172952,5.08628601,181.39,181.31,126.34]
[1747962173151,0.03770774,181.37,181.33,5.549356]
[1747962173355,0.03770774,181.37,181.33,0.035956]
[1747962173653,5.5134,181.34,181.33,0.035956]
[1747962173855,0.03770774,181.37,181.33,0.035956]
[1747962174055,5.5128,181.36,181.33,0.035956]
[1747962174557,0.03770774,181.37,181.33,0.035956]
[1747962176058,5.5134,181.35,181.33,0.035956]
[1747962176759,0.03770774,181.37,181.33,0.035956]
[1747962177156,5.5129,181.36,181.33,0.035956]
[1747962177355,0.03770774,181.37,181.33,0.035956]
[1747962178361,5.513,181.36,181.33,0.035956]
[1747962178556,0.03770774,181.37,181.33,0.035956]
[1747962178761,0.03770774,181.37,181.34,5.5131]
[1747962179263,5.55020774,181.37,181.33,0.035956]
[1747962179659,0.03770774,181.37,181.33,0.035956]
[1747962181763,3.9165,181.48,181.33,118.35321901]
[1747962181960,3.9165,181.48,181.33,112.95386301]
[1747962182158,5.5094,181.47,181.33,112.95386301]
[1747962182360,3.9165,181.48,181.37,7.97726301]
[1747962182562,3.9165,181.48,181.38,125.86]
[1747962182861,0.04087798,181.45,181.42,5.5107]
[1747962183266,0.04087798,181.45,181.41,0.04066922]
[1747962183961,5.5079,181.53,181.47,5.5092]
[1747962184157,125.82,181.54,181.44,125.82]
[1747962184561,5.5081,181.52,181.49,5.5088]
[1747962184757,5.5081,181.52,181.44,125.82]
[1747962184958,0.04023497,181.5,181.46,0.03808646]
[1747962185174,0.04023497,181.5,181.48,5.509]
[1747962185460,0.04023497,181.5,181.49,125.82]
[1747962185965,0.04023497,181.5,181.49,131.3288]
[1747962186673,9.3841,181.59,181.49,125.82]
[1747962186862,3.8781,181.59,181.49,125.82]
[1747962187064,5.5073,181.54,181.5,5.5082]
[1747962187266,3.8781,181.59,181.49,125.82]
[1747962187468,0.04223321,181.56,181.52,0.03723338]
[1747962189071,125.82223321,181.56,181.52,0.03723338]
[1747962190771,131.32223321,181.56,181.38,125.76]
[1747962190973,7.97726301,181.55,181.38,125.76]
[1747962191572,5.5095,181.47,181.42,5.5108]
[1747962191767,5.5095,181.47,181.38,125.76]
[1747962191768,0.04013523,181.46,181.43,0.04131499]
[1747962191973,0.0404201,181.46,181.43,0.0395323]
[1747962193678,5.5604201,181.46,181.32,125.76]
[1747962193881,7.97726301,181.47,181.32,125.76]
[1747962194373,125.76,181.46,181.32,125.76]
[1747962194582,0.03508957,181.41,181.38,5.5121]
[1747962194879,0.03508957,181.41,181.37,0.03732792]
[1747962195268,5.54638957,181.41,181.37,0.03732792]
[1747962195471,0.03508957,181.41,181.37,0.03732792]
[1747962196381,2.0001,181.53,181.49,5.5088]
[1747962196580,2.0001,181.53,181.43,125.76]
[1747962196973,1.9093,181.52,181.43,125.76]
[1747962197168,0.04071578,181.49,181.46,0.03585246]
[1747962197566,0.04071578,181.49,181.46,5.54555246]
[1747962198179,0.04071578,181.49,181.46,0.03585246]
[1747962200381,5.54961578,181.49,181.46,0.03585246]
[1747962200570,0.04071578,181.49,181.46,0.03585246]
[1747962200881,5.5092,181.48,181.46,0.03585246]
[1747962201184,0.04071578,181.49,181.46,0.03585246]
[1747962202078,0.04071578,181.49,181.48,5.5091]
[1747962203276,0.04071578,181.49,181.47,5.5094]
[1747962203475,0.04071578,181.49,181.46,0.03585246]
[1747962203871,5.54961578,181.49,181.46,0.03585246]
[1747962204079,0.04071578,181.49,181.46,0.03585246]
[1747962204378,5.5094,181.47,181.46,0.03585246]
[1747962204581,0.04071578,181.49,181.46,0.03585246]
[1747962206482,5.5094,181.48,181.46,0.03585246]
[1747962206682,0.04071578,181.49,181.46,0.03585246]
[1747962207586,5.54961578,181.49,181.46,0.03585246]
[1747962207783,0.04071578,181.49,181.46,0.03585246]
[1747962208782,5.5094,181.47,181.46,0.03585246]
[1747962209082,0.04071578,181.49,181.46,0.03585246]
[1747962209879,0.04071578,181.49,181.32,487.2078]
[1747962210079,5.8754,181.49,181.38,125.94]
[1747962210279,5.8754,181.49,181.41,5.5111]
[1747962210887,0.04087822,181.47,181.43,0.03765794]
[1747962211882,5.5104,181.44,181.43,0.03765794]
[1747962212387,0.04087822,181.47,181.43,0.03765794]
[1747962212886,5.51,181.46,181.43,0.03765794]
[1747962213389,0.04087822,181.47,181.43,0.03765794]
[1747962213589,0.04087822,181.47,181.46,5.5098]
[1747962213787,6.72996923,181.58,181.44,108.4901]
[1747962214286,5.5076,181.54,181.44,108.4901]
[1747962214586,10.59338601,181.55,181.5,5.5085]
[1747962214783,0.04008813,181.54,181.51,0.03927228]
[1747962215193,0.04008813,181.54,181.52,5.5077]
[1747962215498,0.04008813,181.54,181.51,0.03927228]
[1747962216691,0.04008813,181.54,181.53,5.5076]
[1747962217786,1.39468813,181.59,181.54,5.5073]
[1747962217995,125.96,181.6,181.48,125.96]
[1747962218299,131.4657,181.6,181.55,5.507]
[1747962218497,125.96,181.6,181.48,125.96]
[1747962218802,0.04060368,181.56,181.52,0.04194791]
[1747962219499,0.04060368,181.56,181.55,5.507]
[1747962219694,0.04060368,181.56,181.52,0.04194791]
[1747962219695,5.08628601,181.66,181.53,230.64]
[1747962219896,5.5041,181.65,181.54,3.8518]
[1747962220096,5.08628601,181.66,181.54,3.8518]
[1747962220699,0.02654592,181.62,181.58,0.03806416]
[1747962221199,0.02654592,181.62,181.59,5.5056]
[1747962221400,0.02654592,181.62,181.58,0.03806416]
[1747962221595,5.5058,181.59,181.58,0.03806416]